bitfinex-derivatives/quotes_BTCF0:USTF0_20240814
["timestamp","ask_amount","ask_price","bid_price","bid_amount"]
[1723645589704,0.0841,59427.0,59425.0,0.05018306]
[1723645590202,0.0841,59427.0,59417.0,0.3608]
[1723645590203,0.0841,59427.0,59423.0,0.06682008]
[1723645590799,0.37064224,59433.0,59425.0,0.06682008]
[1723645591096,0.37064224,59433.0,59431.0,0.05018527]
[1723645591604,0.37064224,59433.0,59432.0,0.05018527]
[1723645592000,0.37064224,59433.0,59429.0,0.06682008]
[1723645592199,0.37064224,59433.0,59430.0,0.06682008]
[1723645592499,0.00984224,59433.0,59431.0,0.06682008]
[1723645592797,0.00025248,59434.0,59431.0,0.06682008]
[1723645593001,0.00025248,59434.0,59433.0,0.3608]
[1723645593199,0.00025248,59434.0,59433.0,0.48893439]
[1723645593404,0.00025248,59434.0,59433.0,0.21177055]
[1723645593598,0.00025248,59434.0,59432.0,0.16772816]
[1723645593798,0.00025248,59434.0,59432.0,0.08363616]
[1723645594006,0.00025248,59434.0,59430.0,0.08363616]
[1723645594209,0.00025248,59434.0,59431.0,0.21177787]
[1723645594421,0.00025248,59434.0,59431.0,0.06692652]
[1723645594702,0.00025248,59434.0,59432.0,0.05019598]
[1723645595098,0.58910748,59434.0,59432.0,0.05019598]
[1723645595303,0.084097,59432.0,59430.0,0.05019598]
[1723645595499,0.3608,59433.0,59429.0,0.05019598]
[1723645595908,0.084101,59430.0,59429.0,0.05019598]
[1723645596104,0.084101,59430.0,59420.0,0.3608]
[1723645596105,0.084101,59430.0,59426.0,0.03840788]
[1723645596305,0.3608,59427.0,59421.0,0.06692652]
[1723645596513,0.3608,59427.0,59420.0,0.42772652]
[1723645596700,0.444905,59427.0,59420.0,0.42772652]
[1723645597312,0.3608,59427.0,59420.0,0.42772652]
[1723645597710,0.3608,59427.0,59421.0,0.06692652]
[1723645597909,0.084106,59426.0,59420.0,0.42772652]
[1723645598210,0.084106,59426.0,59419.0,0.01796264]
[1723645598416,0.3608,59422.0,59419.0,0.06693938]
[1723645598713,0.3608,59422.0,59417.0,0.04897675]
[1723645599016,0.3608,59422.0,59412.0,0.16776216]
[1723645600211,0.3608,59422.0,59413.0,0.21181912]
[1723645600514,0.3608,59422.0,59413.0,0.08363616]
[1723645600816,0.3608,59417.0,59410.0,0.0499351]
[1723645601027,0.3608,59417.0,59408.0,0.4107351]
[1723645601328,0.084138,59406.0,59403.0,0.1003387]
[1723645601516,0.3608,59404.0,59391.0,0.3608]
[1723645601715,0.3608,59404.0,59396.0,0.3608]
[1723645602215,0.44494,59404.0,59392.0,0.084157]
[1723645602418,0.3608,59404.0,59398.0,0.084147]
[1723645602818,0.084144,59402.0,59391.0,0.444958]
[1723645603017,0.3608,59404.0,59391.0,0.3608]
[1723645603522,0.3608,59397.0,59384.0,0.3608]
[1723645603713,0.3608,59397.0,59393.0,0.084156]
[1723645603914,0.3608,59397.0,59384.0,0.3608]
[1723645604121,0.3608,59397.0,59396.0,0.084151]
[1723645604317,0.37031022,59404.0,59389.0,0.3608]
[1723645604318,0.37031022,59404.0,59398.0,0.084149]
[1723645604523,0.37031022,59404.0,59389.0,0.3608]
[1723645604820,0.37031022,59404.0,59402.0,0.084142]
[1723645605016,0.37031022,59404.0,59392.0,0.3608]
[1723645605017,0.37031022,59404.0,59398.0,0.084148]
[1723645605212,0.37031022,59404.0,59392.0,0.3608]
[1723645605516,0.37031022,59404.0,59400.0,0.084144]
[1723645605721,0.37031022,59404.0,59401.0,0.084144]
[1723645606116,0.37031022,59404.0,59393.0,0.00076816]
[1723645606321,0.084143,59403.0,59393.0,0.00076816]
[1723645606524,0.444953,59395.0,59393.0,0.00076816]
[1723645607118,0.084174,59380.0,59379.0,0.00962981]
[1723645607319,0.3608,59380.0,59367.0,0.3608]
[1723645607626,1.4469,59394.0,59389.0,0.084161]
[1723645607627,0.3608,59390.0,59389.0,0.084161]
[1723645608217,0.36092974,59390.0,59389.0,0.084161]
[1723645608519,0.36092974,59390.0,59376.0,0.4542]
[1723645608520,0.36092974,59390.0,59377.0,0.084178]
[1723645608720,0.084164,59388.0,59381.0,0.084171]
[1723645608910,0.36092974,59390.0,59382.0,0.3608]
[1723645609116,0.36092974,59390.0,59384.0,0.084168]
[1723645609622,0.36092974,59390.0,59376.0,0.4542]
[1723645609923,0.36092974,59390.0,59375.0,0.3608]
[1723645609924,0.3608,59385.0,59375.0,0.3608]
[1723645610121,0.08418,59376.0,59375.0,0.3608]
[1723645610518,0.084181,59375.0,59370.0,0.3608]
[1723645610727,0.00015618,59374.0,59365.0,0.3608]
[1723645610920,0.084186,59372.0,59367.0,0.084192]
[1723645611122,0.00015618,59374.0,59365.0,0.3608]
[1723645611320,0.00015618,59374.0,59373.0,0.084184]
[1723645611719,0.00015618,59374.0,59365.0,0.3608]
[1723645611929,0.08433918,59374.0,59365.0,0.3608]
[1723645612220,0.00015618,59374.0,59373.0,0.084184]
[1723645613521,0.00998256,59374.0,59373.0,0.084184]
[1723645613914,0.00998256,59374.0,59369.0,0.084189]
[1723645614117,0.00998256,59374.0,59370.0,0.084188]
[1723645614314,0.00998256,59374.0,59365.0,0.37038758]
[1723645614315,0.084185,59373.0,59367.0,0.084192]
[1723645614623,0.00998256,59374.0,59365.0,0.37038758]
[1723645614624,0.084188,59370.0,59365.0,0.37038758]
[1723645614819,0.444986,59372.0,59365.0,0.00958758]
[1723645615122,0.3608,59368.0,59360.0,0.3608]
[1723645615329,0.3608,59368.0,59365.0,0.084195]
[1723645615624,0.3608,59368.0,59360.0,0.3608]
[1723645615824,0.3608,59368.0,59364.0,0.084196]
[1723645616022,0.3608,59368.0,59365.0,0.084195]
[1723645616219,0.3608,59368.0,59361.0,0.084201]
[1723645616420,0.3608,59363.0,59361.0,0.084201]
[1723645616613,0.00014071,59362.0,59361.0,0.084201]
[1723645617726,0.00014071,59362.0,59346.0,0.084221]
[1723645618025,0.3608,59353.0,59340.0,0.3608]
[1723645618419,0.3608,59347.0,59334.0,0.4526]
[1723645618723,0.3608,59347.0,59343.0,0.084225]
[1723645618923,0.00018646,59346.0,59343.0,0.084225]
[1723645619117,0.36098646,59346.0,59337.0,0.3608]
[1723645619323,0.36098646,59346.0,59336.0,0.3608]
[1723645619324,0.36123916,59346.0,59336.0,0.3608]
[1723645619521,0.36123916,59346.0,59340.0,0.08423]
[1723645619717,0.084226,59343.0,59327.0,0.3608]
[1723645619923,0.3608,59337.0,59327.0,0.37050675]
[1723645620123,0.00012535,59336.0,59327.0,0.37050675]
[1723645620325,0.00012535,59336.0,59335.0,0.084237]
[1723645620524,0.00012535,59336.0,59326.0,0.4847]
[1723645622031,0.00012535,59336.0,59326.0,0.8455]
[1723645622328,0.00012535,59336.0,59335.0,0.084237]
[1723645623015,0.00980559,59336.0,59335.0,0.084237]
[1723645624030,0.00980559,59336.0,59326.0,0.8455]
[1723645624231,0.3608,59333.0,59331.0,0.084243]
[1723645624632,0.3608,59333.0,59326.0,0.3608]
[1723645624833,0.3608,59333.0,59326.0,0.445049]
[1723645625128,0.44504,59333.0,59329.0,0.084245]
[1723645625324,0.084243,59332.0,59326.0,0.3608]
[1723645625629,0.084243,59332.0,59323.0,0.3608]
[1723645625830,0.084243,59332.0,59326.0,0.08425]
[1723645626124,0.3608,59327.0,59322.0,0.084256]
[1723645626332,0.00018993,59326.0,59322.0,0.084256]
[1723645626528,0.00018993,59326.0,59317.0,0.3608]
[1723645626827,0.00018993,59326.0,59311.0,0.00104]
[1723645626828,0.3608,59321.0,59311.0,0.00104]
[1723645627030,0.3608,59321.0,59295.0,0.084293]
[1723645627031,0.3608,59312.0,59290.0,0.3608]
[1723645627532,0.3608,59312.0,59295.0,0.3608]
[1723645627731,0.3608,59312.0,59306.0,0.084278]
[1723645628033,0.00014699,59311.0,59306.0,0.084278]
[1723645628228,0.08452892,59309.0,59295.0,0.3608]
[1723645628431,0.3608,59307.0,59303.0,0.084282]
[1723645629024,0.084288,59300.0,59292.0,0.09378117]
[1723645629220,0.00014415,59299.0,59292.0,0.00948317]
[1723645629534,0.00014415,59299.0,59298.0,0.08429]
[1723645630032,0.00014415,59299.0,59298.0,0.44509]
[1723645630629,0.3608,59314.0,59299.0,0.590208]
[1723645630833,0.084254,59324.0,59310.0,0.3608]
[1723645631134,0.084254,59324.0,59305.0,0.3608]
[1723645631135,0.3608,59320.0,59305.0,0.3608]
[1723645631429,0.08427,59312.0,59311.0,0.3608]
[1723645631633,0.00018802,59312.0,59305.0,0.3608]
[1723645631828,0.3608,59307.0,59296.0,0.3608]
[1723645632033,0.3608,59301.0,59291.0,0.3608]
[1723645632439,0.30176971,59301.0,59291.0,0.3608]
[1723645632627,0.00014976,59306.0,59305.0,0.08428]
[1723645632827,0.084267,59314.0,59308.0,0.084274]
[1723645633028,0.3608,59316.0,59308.0,0.084274]
[1723645633330,0.19196802,59315.0,59296.0,0.3608]
[1723645633530,0.3608,59311.0,59296.0,0.3608]
[1723645633734,0.00016019,59310.0,59301.0,0.084285]
[1723645633933,0.084281,59305.0,59298.0,0.08429]
[1723645634231,0.08440497,59304.0,59296.0,0.445093]
[1723645634434,0.00012297,59304.0,59303.0,0.084283]
[1723645634737,0.084284,59303.0,59296.0,0.36105292]
[1723645635030,0.17818459,59304.0,59296.0,0.36105292]
[1723645635236,0.00012297,59304.0,59296.0,0.36105292]
[1723645635426,0.00012297,59304.0,59303.0,0.445083]
[1723645635624,0.00980038,59304.0,59303.0,0.445083]
[1723645636633,0.3608,59325.0,59306.0,0.084278]
[1723645636828,0.37025942,59325.0,59314.0,0.3608]
[1723645637333,0.445055,59323.0,59308.0,0.3608]
[1723645637536,0.084264,59317.0,59313.0,0.084269]
[1723645637836,0.3608,59323.0,59308.0,0.3608]
[1723645638040,0.00025292,59321.0,59309.0,0.00025292]
[1723645638233,0.084263,59318.0,59314.0,0.084267]
[1723645638428,0.00025292,59321.0,59309.0,0.00025292]
[1723645638839,0.084273,59310.0,59309.0,0.00025292]
[1723645639031,0.084261,59319.0,59308.0,0.3608]
[1723645639032,0.084274,59309.0,59308.0,0.3608]
[1723645639435,0.3608,59316.0,59308.0,0.3608]
[1723645639639,0.084271,59312.0,59308.0,0.3608]
[1723645639937,0.3608,59316.0,59308.0,0.445076]
[1723645640137,1.43470001,59322.0,59308.0,0.3608]
[1723645640436,0.3608,59318.0,59308.0,0.3608]
[1723645640635,0.3608,59312.0,59303.0,0.3608]
[1723645640839,0.084273,59310.0,59304.0,0.00025292]
[1723645641038,0.084276,59308.0,59304.0,0.00025292]
[1723645641227,0.084278,59307.0,59304.0,0.00025292]
[1723645641636,0.3608,59318.0,59304.0,0.00025292]
[1723645641840,0.3608,59309.0,59304.0,0.00025292]
[1723645642535,0.3608,59313.0,59304.0,0.00025292]
[1723645642732,0.3608,59318.0,59308.0,0.3608]
[1723645642939,0.3608,59318.0,59315.0,0.084265]
[1723645643131,0.3608,59318.0,59308.0,0.3608]
[1723645643335,0.3608,59325.0,59313.0,0.084268]
[1723645643537,0.445062,59318.0,59309.0,0.08284567]
[1723645643831,0.084266,59315.0,59309.0,0.3608]
[1723645644032,0.084266,59315.0,59306.0,0.08284567]
[1723645644033,0.084266,59315.0,59305.0,0.08284567]
[1723645644237,0.084266,59315.0,59307.0,0.084277]
[1723645644435,0.3608,59312.0,59311.0,0.084271]
[1723645645031,0.3608,59318.0,59311.0,0.990071]
[1723645645237,0.3608,59318.0,59317.0,0.084263]
[1723645645539,0.3608,59318.0,59313.0,0.08284567]
[1723645645738,0.3608,59318.0,59312.0,0.08284567]
[1723645645938,0.3608,59318.0,59316.0,0.084264]
[1723645646331,0.3608,59325.0,59320.0,0.084258]
[1723645646534,0.3608,59325.0,59320.0,0.16789476]
[1723645646736,0.3608,59327.0,59320.0,0.12838474]
[1723645647048,0.44505,59327.0,59320.0,0.12838474]
[1723645647242,0.08450992,59321.0,59320.0,0.12838474]
[1723645647548,0.00025292,59321.0,59320.0,0.12838474]
[1723645647942,0.00025292,59321.0,59320.0,0.21264374]
[1723645648150,0.16393514,59371.0,59320.0,0.21264374]
[1723645648151,0.3608,59343.0,59321.0,0.50572]
[1723645648438,0.00855788,59347.0,59320.0,1.04545145]
[1723645648439,0.00855788,59347.0,59346.0,0.084222]
[1723645648643,0.3608,59352.0,59346.0,0.12838474]
[1723645648838,0.3608,59352.0,59349.0,0.084216]
[1723645649043,0.3608,59352.0,59350.0,0.12838474]
[1723645649235,0.3608,59352.0,59351.0,0.21259974]
[1723645649442,0.3608,59357.0,59352.0,0.084213]
[1723645649639,0.084209,59355.0,59354.0,0.08368043]
[1723645649941,0.00025292,59356.0,59355.0,0.084209]
[1723645650142,0.00990701,59356.0,59355.0,0.16788943]
[1723645650344,0.00025292,59356.0,59355.0,0.21191736]
[1723645650542,0.00025292,59356.0,59355.0,0.12831715]
[1723645650738,0.00025292,59356.0,59355.0,0.21191569]
[1723645650938,0.00025292,59356.0,59355.0,0.21191574]
[1723645651237,0.00025292,59356.0,59355.0,0.12831715]
[1723645651544,0.00025292,59356.0,59355.0,0.16774149]
[1723645651747,0.00025292,59356.0,59355.0,0.21251817]
[1723645652251,0.00025292,59356.0,59355.0,0.12830917]
[1723645652438,0.00025292,59356.0,59352.0,0.10053075]
[1723645652439,0.00989026,59356.0,59353.0,0.08346784]
[1723645652636,0.00025292,59356.0,59352.0,0.08346784]
[1723645652843,0.31050304,59358.0,59352.0,0.08346784]
[1723645653040,0.31050304,59358.0,59356.0,0.084207]
[1723645653238,0.31050304,59358.0,59353.0,0.08421]
[1723645653847,0.31050304,59358.0,59354.0,0.08421]
[1723645654051,0.00025292,59361.0,59358.0,0.084204]
[1723645654347,0.00025292,59361.0,59359.0,0.084202]
[1723645655846,0.00025292,59361.0,59351.0,0.3608]
[1723645655847,0.00025292,59361.0,59360.0,0.084202]
[1723645657244,0.00025292,59361.0,59360.0,0.589602]
[1723645657937,0.00865245,59363.0,59362.0,0.084199]
[1723645658146,0.3608,59371.0,59358.0,0.3608]
[1723645658350,0.444987,59371.0,59358.0,0.3608]
[1723645658543,0.084195,59365.0,59358.0,0.445005]
[1723645658748,0.3608,59366.0,59353.0,0.06656188]
[1723645659047,0.3608,59366.0,59349.0,0.06656188]
[1723645659048,0.3608,59360.0,59349.0,0.06656188]
[1723645659251,0.084198,59363.0,59354.0,0.0002527]
[1723645659450,0.084199,59362.0,59356.0,0.084208]
[1723645659752,0.3608,59360.0,59356.0,0.084208]
[1723645659951,0.3608,59360.0,59357.0,0.084206]
[1723645660151,0.0002527,59365.0,59354.0,0.0002527]
[1723645660453,0.0002527,59365.0,59359.0,0.084202]
[1723645660751,0.0002527,59365.0,59361.0,0.3608]
[1723645660940,0.0002527,59365.0,59364.0,0.084196]
[1723645661142,0.00967306,59365.0,59364.0,0.084196]
[1723645661449,0.3608,59375.0,59364.0,0.50536]
[1723645661651,0.3608,59375.0,59366.0,0.3608]
[1723645661847,0.3608,59375.0,59371.0,0.084185]
[1723645662043,0.37024291,59380.0,59372.0,0.084184]
[1723645662044,0.3608,59378.0,59372.0,0.084184]
[1723645662450,0.3608,59378.0,59366.0,0.3608]
[1723645662754,0.084178,59377.0,59369.0,0.0002527]
[1723645662949,0.3608,59378.0,59369.0,0.0002527]
[1723645663155,0.084188,59370.0,59369.0,0.0002527]
[1723645663549,0.3608,59378.0,59369.0,0.0002527]
[1723645663750,0.084182,59375.0,59369.0,0.0002527]
[1723645663951,0.3608,59378.0,59373.0,0.084183]
[1723645664147,0.3608,59378.0,59377.0,0.084178]
[1723645664353,0.00944291,59380.0,59372.0,0.084184]
[1723645664553,0.3608,59376.0,59372.0,0.084184]
[1723645664749,0.3608,59376.0,59369.0,0.0002527]
[1723645664953,0.3608,59376.0,59372.0,0.084184]
[1723645665154,0.3608,59376.0,59369.0,0.0002527]
[1723645665355,0.36861977,59381.0,59377.0,0.084177]
[1723645665749,0.36861977,59381.0,59369.0,0.0002527]
[1723645666259,0.45279277,59381.0,59369.0,0.0002527]
[1723645666450,0.36861977,59381.0,59376.0,0.084179]
[1723645666647,0.36861977,59381.0,59369.0,0.0002527]
[1723645666858,0.36861977,59381.0,59373.0,0.084183]
[1723645667059,0.36861977,59381.0,59369.0,0.0002527]
[1723645667561,0.36861977,59381.0,59376.0,0.084179]
[1723645668055,0.36861977,59381.0,59376.0,0.084178]
[1723645668249,0.084181,59375.0,59369.0,0.0002527]
[1723645668452,0.444983,59374.0,59369.0,0.0002527]
[1723645668866,0.3608,59374.0,59369.0,0.0002527]
[1723645669161,0.444982,59374.0,59369.0,0.0002527]
[1723645669563,0.3608,59374.0,59371.0,0.084186]
[1723645670059,0.3608,59374.0,59369.0,0.0002527]
[1723645670565,0.3608,59374.0,59371.0,0.084186]
[1723645670763,0.3608,59374.0,59369.0,0.0002527]
[1723645670764,0.3608,59374.0,59373.0,0.084183]
[1723645671057,0.3610527,59381.0,59369.0,0.3610527]
[1723645671463,0.3610527,59381.0,59370.0,0.06656188]
[1723645671859,0.3610527,59381.0,59380.0,0.084173]
[1723645672059,0.3610527,59381.0,59377.0,0.084177]
[1723645673057,0.3610527,59381.0,59375.0,0.08418]
[1723645673369,0.3610527,59381.0,59370.0,0.06656188]
[1723645673554,0.3610527,59381.0,59376.0,0.084178]
[1723645673755,0.36872129,59381.0,59377.0,0.084177]
[1723645673955,0.36872129,59381.0,59378.0,0.084175]
[1723645674155,0.36872129,59381.0,59372.0,0.06656188]
[1723645674358,0.36872129,59381.0,59380.0,0.084174]
[1723645674359,0.00792129,59381.0,59380.0,0.084174]
[1723645674869,0.3608,59389.0,59385.0,0.084166]
[1723645674870,0.084161,59389.0,59385.0,0.084166]
[1723645675159,0.3608,59390.0,59386.0,0.06679884]
[1723645675360,0.3608,59390.0,59383.0,0.06679884]
[1723645675664,0.3608,59390.0,59382.0,0.08417]
[1723645675665,0.45272989,59390.0,59386.0,0.06679884]
[1723645675870,0.084164,59387.0,59386.0,0.04088873]
[1723645676063,0.36856989,59390.0,59383.0,0.084168]
[1723645676375,0.36856989,59390.0,59384.0,0.3608]
[1723645676558,0.36856989,59390.0,59385.0,0.21171237]
[1723645676869,0.00016686,59392.0,59391.0,0.084158]
[1723645677056,0.00779954,59392.0,59391.0,0.21240227]
[1723645677257,0.00016686,59392.0,59389.0,0.44496]
[1723645677459,0.00016686,59392.0,59391.0,0.084158]
[1723645679466,0.00016686,59392.0,59384.0,0.08364655]
[1723645679663,0.084163,59388.0,59383.0,0.3608]
[1723645679866,0.00016686,59392.0,59383.0,0.3608]
[1723645680071,0.00016686,59392.0,59391.0,0.084158]
[1723645680461,0.00016686,59392.0,59383.0,0.3608]
[1723645680462,0.00808478,59392.0,59383.0,0.3608]
[1723645680767,0.00016686,59392.0,59391.0,0.084158]
[1723645681460,0.00016686,59392.0,59391.0,0.252474]
[1723645681762,0.00016686,59392.0,59391.0,0.084158]
[1723645682754,0.00016686,59392.0,59388.0,0.3608]
[1723645683562,0.00016686,59392.0,59390.0,0.084159]
[1723645683769,0.084168,59384.0,59383.0,0.3608]
[1723645683963,0.084168,59384.0,59373.0,0.3608]
[1723645683964,0.3608,59384.0,59373.0,0.3608]
[1723645684161,0.3608,59379.0,59373.0,0.26051263]
[1723645684371,0.3608,59379.0,59370.0,0.06564655]
[1723645684557,0.084186,59371.0,59370.0,0.03552543]
[1723645684763,0.3608,59372.0,59370.0,0.0154344]
[1723645685172,0.3608,59375.0,59370.0,0.0154344]
[1723645685370,0.3608,59375.0,59365.0,0.0002527]
[1723645685569,0.0002527,59377.0,59370.0,0.3608]
[1723645685770,0.0002527,59377.0,59376.0,0.084179]
[1723645685964,0.0002527,59377.0,59371.0,0.084185]
[1723645686164,0.0002527,59377.0,59370.0,0.3608]
[1723645686165,0.0002527,59377.0,59376.0,0.084179]
[1723645686473,0.0002527,59377.0,59376.0,0.168358]
[1723645686668,0.0002527,59377.0,59376.0,1.073598]
[1723645686857,7e-07,59377.0,59376.0,1.652177]
[1723645687062,0.3608,59399.0,59376.0,1.90914]
[1723645687263,0.3608,59399.0,59398.0,0.084148]
[1723645687856,0.00780949,59399.0,59390.0,0.3608]
[1723645688058,0.4529,59408.0,59405.0,0.084137]
[1723645688362,0.3608,59411.0,59403.0,0.3608]
[1723645688569,0.00016686,59412.0,59403.0,0.3608]
[1723645689171,0.00016686,59412.0,59411.0,0.084129]
[1723645690165,0.00016686,59412.0,59411.0,0.21230764]
[1723645690967,0.00016686,59412.0,59411.0,1.11726764]
[1723645691470,0.00016686,59412.0,59411.0,0.21230764]
[1723645691964,0.00016686,59412.0,59411.0,1.11726764]
[1723645693274,0.00016686,59412.0,59411.0,0.989089]
[1723645693472,0.00016686,59412.0,59411.0,0.589089]
[1723645693766,0.00016686,59412.0,59411.0,0.989089]
[1723645693972,0.00016686,59412.0,59409.0,0.3608]
[1723645694270,0.08413,59411.0,59409.0,0.3608]
[1723645694472,0.00016686,59412.0,59411.0,0.084129]
[1723645694973,0.084131,59410.0,59409.0,0.3608]
[1723645695271,0.00016686,59412.0,59409.0,0.3608]
[1723645696072,0.00016686,59412.0,59411.0,0.084129]
[1723645696272,0.00016686,59412.0,59411.0,0.444929]
[1723645696572,0.00016686,59412.0,59411.0,1.349889]
[1723645697771,0.00016686,59412.0,59411.0,0.444929]
[1723645697973,0.00016686,59412.0,59411.0,0.949889]
[1723645698273,0.00016686,59412.0,59411.0,1.349889]
[1723645698577,0.00016686,59412.0,59411.0,1.434019]
[1723645700267,0.084106,59429.0,59412.0,0.50492]
[1723645700566,0.444893,59438.0,59429.0,0.084104]
[1723645700766,0.3608,59430.0,59419.0,0.3608]
[1723645700965,0.3608,59430.0,59422.0,0.084114]
[1723645701170,0.084109,59426.0,59419.0,0.3608]
[1723645701381,0.084109,59426.0,59420.0,0.08436948]
[1723645701677,0.084109,59426.0,59424.0,0.084111]
[1723645701874,0.36848854,59438.0,59424.0,0.3608]
[1723645702076,0.084098,59434.0,59424.0,0.3608]
[1723645702372,0.3608,59438.0,59424.0,0.3608]
[1723645702576,0.3608,59438.0,59430.0,0.084093]
[1723645702577,0.084089,59434.0,59430.0,0.084093]
[1723645703262,0.084085,59437.0,59424.0,0.3608]
[1723645703468,0.00755981,59438.0,59437.0,0.084085]
[1723645703675,0.4778,59443.0,59436.0,0.3608]
[1723645704371,0.084082,59439.0,59436.0,0.3608]
[1723645704773,0.084083,59438.0,59436.0,0.3608]
[1723645705178,0.00786801,59440.0,59437.0,0.084083]
[1723645705481,0.084079,59441.0,59436.0,0.3608]
[1723645705679,0.084079,59441.0,59434.0,0.084088]
[1723645705880,0.3608,59424.0,59401.0,0.10012261]
[1723645706184,0.3608,59424.0,59400.0,0.00016114]
[1723645706185,0.3608,59402.0,59400.0,0.00016114]
[1723645708980,0.084135,59401.0,59400.0,0.00016114]
[1723645709880,0.084135,59401.0,59395.0,0.00025248]
[1723645709881,0.084142,59396.0,59395.0,0.00025248]
[1723645710076,0.444942,59396.0,59395.0,0.00025248]
[1723645710274,0.3608,59396.0,59369.0,0.55352261]
[1723645710478,0.54843601,59400.0,59369.0,0.55352261]
[1723645710479,0.3608,59377.0,59371.0,0.21204144]
[1723645710681,0.3608,59377.0,59372.0,0.08380591]
[1723645710873,0.00013084,59376.0,59371.0,0.50528]
[1723645711074,0.00013084,59376.0,59360.0,0.46092261]
[1723645711382,0.3608,59371.0,59361.0,0.21206334]
[1723645711576,0.3608,59371.0,59362.0,0.00854053]
[1723645711881,0.00025248,59374.0,59371.0,0.084177]
[1723645712083,0.3608,59372.0,59366.0,0.084184]
[1723645712378,0.3608,59367.0,59362.0,0.00025248]
[1723645712779,0.084185,59366.0,59363.0,0.084189]
[1723645712985,0.3608,59367.0,59366.0,0.084185]
[1723645713577,0.3608,59367.0,59366.0,0.589505]
[1723645714180,0.3608,59367.0,59366.0,0.989505]
[1723645714783,0.36105248,59374.0,59366.0,0.90532]
[1723645714985,0.3608,59367.0,59366.0,0.084185]
[1723645715376,0.3608,59367.0,59366.0,0.1675474]
[1723645715576,0.3608,59367.0,59366.0,0.0833624]
[1723645715778,0.3608,59367.0,59363.0,0.0833624]
[1723645715779,0.084185,59366.0,59363.0,0.0833624]
[1723645716082,0.3608,59367.0,59363.0,0.084188]
[1723645716282,0.3608,59367.0,59362.0,0.08361488]
[1723645716482,0.30184246,59367.0,59363.0,0.21163717]
[1723645716784,0.084189,59363.0,59362.0,0.00025248]
[1723645716990,0.08432285,59363.0,59362.0,0.00025248]
[1723645717390,0.08432285,59363.0,59362.0,0.05022073]
[1723645717681,0.08432285,59363.0,59362.0,0.00025248]
[1723645717892,0.08432285,59363.0,59362.0,0.05022073]
[1723645718088,0.08432285,59363.0,59362.0,0.00025248]
[1723645718783,0.08432285,59363.0,59362.0,0.05022073]
[1723645719192,0.08432285,59363.0,59362.0,0.00025248]
[1723645719587,0.00013385,59363.0,59362.0,0.05018465]
[1723645719886,0.00013385,59363.0,59362.0,0.00025248]
[1723645721493,0.30957981,59367.0,59364.0,0.084187]
[1723645721687,0.30957981,59367.0,59365.0,0.04988038]
[1723645721889,0.30957981,59367.0,59363.0,0.084188]
[1723645722287,0.30957981,59367.0,59366.0,0.04987918]
[1723645722590,0.30964432,59367.0,59363.0,0.13406718]
[1723645722889,0.30964432,59367.0,59363.0,0.04987918]
[1723645723091,0.30964432,59367.0,59362.0,0.00025248]
[1723645723092,0.084189,59363.0,59362.0,0.00025248]
[1723645723294,0.168378,59363.0,59362.0,0.00025248]
[1723645723493,0.30964432,59367.0,59348.0,0.05002381]
[1723645723690,0.3608,59349.0,59348.0,0.00014463]
[1723645723890,0.36086451,59349.0,59348.0,0.00014463]
[1723645724287,0.36086451,59349.0,59348.0,0.95550381]
[1723645724489,0.3608,59361.0,59348.0,1.35063463]
[1723645724690,0.3608,59361.0,59360.0,0.084193]
[1723645725502,0.3608,59361.0,59360.0,0.99943817]
[1723645727186,0.00025271,59366.0,59365.0,0.084186]
[1723645727398,0.3608,59372.0,59371.0,0.084178]
[1723645727599,0.3608,59378.0,59372.0,0.084176]
[1723645727797,0.3608,59378.0,59377.0,0.084169]
[1723645727998,0.3608,59378.0,59377.0,0.484169]
[1723645728196,0.3608,59378.0,59377.0,0.989409]
[1723645728397,0.08417,59376.0,59374.0,0.04982211]
[1723645728594,0.08417,59376.0,59375.0,0.084172]
[1723645728908,0.084172,59375.0,59372.0,0.05007482]
[1723645729101,0.084172,59375.0,59372.0,0.00025271]
[1723645729397,0.3618,59378.0,59377.0,0.014]
[1723645729603,0.3618,59378.0,59377.0,0.098169]
[1723645729788,0.3618,59378.0,59377.0,1.05323111]
[1723645729988,0.3618,59378.0,59377.0,1.439909]
[1723645730192,0.001,59378.0,59377.0,1.439909]
[1723645730792,0.001,59378.0,59377.0,1.524078]
[1723645730995,0.00025271,59383.0,59382.0,0.084162]
[1723645731196,0.00025271,59383.0,59382.0,0.444962]
[1723645731391,0.00025271,59383.0,59382.0,1.350162]
[1723645731595,0.31196985,59392.0,59379.0,0.44392085]
[1723645731795,0.31196985,59392.0,59386.0,0.04989821]
[1723645732101,0.084153,59389.0,59386.0,0.04989821]
[1723645732398,0.31196985,59392.0,59379.0,0.44392085]
[1723645732399,0.32139127,59392.0,59379.0,0.44392085]
[1723645732591,0.32139127,59392.0,59389.0,0.04993223]
[1723645732592,0.00942142,59392.0,59389.0,0.04993223]
[1723645732795,0.44495,59390.0,59389.0,0.04993223]
[1723645732989,0.44495,59390.0,59382.0,0.011]
[1723645732990,0.3608,59390.0,59388.0,0.04993223]
[1723645733199,0.00025203,59391.0,59384.0,0.4001]
[1723645733200,0.00025203,59391.0,59390.0,0.08415]
[1723645733392,0.00025203,59391.0,59390.0,0.48425]
[1723645733597,0.00025203,59391.0,59390.0,1.51757738]
[1723645734299,0.00025203,59391.0,59390.0,1.610542]
[1723645734499,0.00025203,59391.0,59390.0,0.61445738]
[1723645734801,0.00025203,59391.0,59390.0,1.11957738]
[1723645735003,0.00025203,59391.0,59390.0,0.61445738]
[1723645735202,0.00025203,59391.0,59390.0,0.69784726]
[1723645735406,0.00025203,59391.0,59390.0,0.61445738]
[1723645735597,0.08440103,59391.0,59390.0,0.23032999]
[1723645735796,0.08440103,59391.0,59390.0,0.13020738]
[1723645736206,0.08440103,59391.0,59390.0,0.12820738]
[1723645736407,0.08440103,59391.0,59390.0,0.13120738]
[1723645736599,0.08440103,59391.0,59390.0,0.21476036]
[1723645737091,0.08440103,59391.0,59390.0,0.13120738]
[1723645737294,0.00025203,59391.0,59390.0,0.21535838]
[1723645737502,0.00025203,59391.0,59390.0,2.01763985]
[1723645737701,0.3608,59407.0,59391.0,0.08415]
[1723645737908,0.3608,59407.0,59405.0,0.08413]
[1723645738208,0.3608,59407.0,59403.0,0.10026873]